[Event "*** Titled Tuesday Blitz"]
[Site "Chess.com"]
[Date "2020.05.12"]
[Round "9"]
[White "GjakanTati"]
[Black "LawrenceTrent"]
[Result "1-0"]
[WhiteElo "2653"]
[BlackElo "2529"]
[TimeControl "180+1"]
[EndTime "11:43:58 PDT"]
[Termination "GjakanTati won by resignation"]

1. d4 {[%clk 0:03:00.9]} 1... Nf6 {[%clk 0:02:59.6]} 2. c4 {[%clk 0:03:00.4]}
2... e6 {[%clk 0:02:59.9]} 3. Nf3 {[%clk 0:02:59.9]} 3... d5 {[%clk 0:02:59.9]}
4. Nc3 {[%clk 0:02:59.3]} 4... Bb4 {[%clk 0:02:58.5]} 5. Qb3 {[%clk 0:02:57.6]}
5... c5 {[%clk 0:02:53.7]} 6. dxc5 {[%clk 0:02:57.4]} 6... Nc6 {[%clk
0:02:49.5]} 7. Bd2 {[%clk 0:02:37.5]} 7... d4 {[%clk 0:02:40.9]} 8. Na4 {[%clk
0:02:23.7]} 8... Bxd2+ {[%clk 0:02:36.8]} 9. Nxd2 {[%clk 0:02:24.6]} 9... e5
{[%clk 0:02:36.6]} 10. g3 {[%clk 0:02:22.6]} 10... O-O {[%clk 0:02:26.2]} 11.
Bg2 {[%clk 0:02:22.1]} 11... Qa5 {[%clk 0:02:26.2]} 12. Qb5 {[%clk 0:02:18.6]}
12... Qc7 {[%clk 0:02:22.9]} 13. O-O {[%clk 0:02:13.2]} 13... Bd7 {[%clk
0:02:22.1]} 14. Qb3 {[%clk 0:02:13.1]} 14... Rfe8 {[%clk 0:02:15.1]} 15. Qa3
{[%clk 0:02:04.1]} 15... Qa5 {[%clk 0:02:12.5]} 16. Nb3 {[%clk 0:01:51.6]} 16...
Qa6 {[%clk 0:02:12.6]} 17. Nd2 {[%clk 0:01:46.8]} 17... e4 {[%clk 0:02:05.6]}
18. b3 {[%clk 0:01:12.1]} 18... Qa5 {[%clk 0:01:45.2]} 19. Qb2 {[%clk
0:01:09.7]} 19... Rad8 {[%clk 0:01:45]} 20. Rad1 {[%clk 0:01:07.1]} 20... Bf5
{[%clk 0:01:42.4]} 21. Qc1 {[%clk 0:00:52.9]} 21... h5 {[%clk 0:01:40.7]} 22.
Nb1 {[%clk 0:00:46.3]} 22... Bg6 {[%clk 0:01:34]} 23. Na3 {[%clk 0:00:44.8]}
23... Qc7 {[%clk 0:01:28.5]} 24. Nb5 {[%clk 0:00:43.5]} 24... Qe5 {[%clk
0:01:28.4]} 25. Nd6 {[%clk 0:00:43.1]} 25... Re7 {[%clk 0:01:28.7]} 26. Qf4
{[%clk 0:00:32.2]} 26... b6 {[%clk 0:01:28.3]} 27. Qxe5 {[%clk 0:00:17.2]} 27...
Rxe5 {[%clk 0:01:26.5]} 28. Nb5 {[%clk 0:00:14.4]} 28... bxc5 {[%clk 0:01:26.4]}
29. f4 {[%clk 0:00:14.4]} 29... exf3 {[%clk 0:01:23.5]} 30. Bxf3 {[%clk
0:00:14.8]} 30... Be4 {[%clk 0:01:23.2]} 31. Rd2 {[%clk 0:00:12.1]} 31... Bxf3
{[%clk 0:01:22.6]} 32. exf3 {[%clk 0:00:13]} 32... h4 {[%clk 0:01:16.4]} 33. f4
{[%clk 0:00:12.3]} 33... Rf5 {[%clk 0:01:16.6]} 34. Kg2 {[%clk 0:00:11.6]} 34...
Re8 {[%clk 0:01:14.3]} 35. Rff2 {[%clk 0:00:08.8]} 35... Re6 {[%clk 0:01:10.8]}
36. Rfe2 {[%clk 0:00:09.1]} 36... Rh5 {[%clk 0:01:05.4]} 37. Kf3 {[%clk
0:00:09.3]} 37... hxg3 {[%clk 0:01:05]} 38. hxg3 {[%clk 0:00:10.2]} 38... Ne7
{[%clk 0:01:00.8]} 39. Rxe6 {[%clk 0:00:10.6]} 39... fxe6 {[%clk 0:01:00.3]} 40.
Re2 {[%clk 0:00:11.5]} 40... Nf5 {[%clk 0:00:57.1]} 41. Nxa7 {[%clk 0:00:10.2]}
41... Rh3 {[%clk 0:00:56.9]} 42. Rg2 {[%clk 0:00:09.3]} 42... Nh4+ {[%clk
0:00:57.1]} 43. Kf2 {[%clk 0:00:09.8]} 43... Ng4+ {[%clk 0:00:57.2]} 44. Kg1
{[%clk 0:00:09.5]} 44... Nf3+ {[%clk 0:00:56.3]} 45. Kf1 {[%clk 0:00:09.3]}
45... d3 {[%clk 0:00:56.9]} 46. Rb2 {[%clk 0:00:06.2]} 46... Rh1+ {[%clk
0:00:56]} 47. Kg2 {[%clk 0:00:06.7]} 47... Rh2+ {[%clk 0:00:54.1]} 48. Kxf3
{[%clk 0:00:07.3]} 48... d2 {[%clk 0:00:50.3]} 49. Rxd2 {[%clk 0:00:06.2]} 49...
Rxd2 {[%clk 0:00:50.3]} 50. Kxg4 {[%clk 0:00:07.1]} 50... Rxa2 {[%clk
0:00:50.3]} 51. Nc8 {[%clk 0:00:06.7]} 51... Kf7 {[%clk 0:00:47.8]} 52. Nxc5
{[%clk 0:00:07.6]} 52... Kf6 {[%clk 0:00:46.6]} 53. Nd6 {[%clk 0:00:07.8]} 53...
e5 {[%clk 0:00:46.5]} 54. Nde4+ {[%clk 0:00:08.6]} 54... Ke7 {[%clk 0:00:46.1]}
55. fxe5 {[%clk 0:00:09.5]} 55... Rb2 {[%clk 0:00:45.8]} 56. Nc3 {[%clk
0:00:09.2]} 56... Rc2 {[%clk 0:00:45.7]} 57. Nd5+ {[%clk 0:00:10.1]} 57... Kf8
{[%clk 0:00:45.6]} 58. e6 {[%clk 0:00:11]} 58... g6 {[%clk 0:00:45.6]} 59. Nd7+
{[%clk 0:00:11.2]} 59... Kg7 {[%clk 0:00:46.5]} 60. N7f6 {[%clk 0:00:10.4]}
60... Re2 {[%clk 0:00:46.3]} 61. Ne8+ {[%clk 0:00:08]} 61... Kf8 {[%clk
0:00:46.4]} 62. Nec7 {[%clk 0:00:08.9]} 62... Re4+ {[%clk 0:00:44.7]} 63. Kg5
{[%clk 0:00:08.7]} 63... Re5+ {[%clk 0:00:45.6]} 64. Kf6 {[%clk 0:00:08.6]} 1-0

[Event "*** Titled Tuesday Blitz"]
[Site "Chess.com"]
[Date "2020.05.12"]
[Round "9"]
[White "Berardino"]
[Black "Alomaterapia"]
[Result "0-1"]
[WhiteElo "2606"]
[BlackElo "2524"]
[TimeControl "180+1"]
[EndTime "11:43:59 PDT"]
[Termination "Alomaterapia won by resignation"]

1. e4 {[%clk 0:03:00.9]} 1... c6 {[%clk 0:02:59.3]} 2. d4 {[%clk 0:03:00.5]}
2... d5 {[%clk 0:03:00.2]} 3. exd5 {[%clk 0:03:00.9]} 3... cxd5 {[%clk
0:03:00.3]} 4. c4 {[%clk 0:03:01.6]} 4... Nf6 {[%clk 0:02:58.4]} 5. Nc3 {[%clk
0:03:02.1]} 5... g6 {[%clk 0:02:48.8]} 6. Qb3 {[%clk 0:03:00.8]} 6... Bg7 {[%clk
0:02:48.6]} 7. cxd5 {[%clk 0:03:01.1]} 7... O-O {[%clk 0:02:49.2]} 8. Be2 {[%clk
0:03:01.3]} 8... Nbd7 {[%clk 0:02:22.9]} 9. Bf3 {[%clk 0:02:59.6]} 9... Nb6
{[%clk 0:02:22.9]} 10. a4 {[%clk 0:02:57.9]} 10... a5 {[%clk 0:02:16.1]} 11.
Nge2 {[%clk 0:02:51.1]} 11... Bf5 {[%clk 0:02:14.7]} 12. Bf4 {[%clk 0:02:17.6]}
12... Bd3 {[%clk 0:01:59.9]} 13. d6 {[%clk 0:02:17.5]} 13... exd6 {[%clk
0:01:48.4]} 14. O-O {[%clk 0:02:17.5]} 14... Re8 {[%clk 0:01:40.9]} 15. Rfd1
{[%clk 0:01:57.5]} 15... Bc4 {[%clk 0:01:24.8]} 16. Qc2 {[%clk 0:01:57.5]} 16...
Rc8 {[%clk 0:01:21.7]} 17. Qd2 {[%clk 0:01:37.3]} 17... Ba6 {[%clk 0:01:02.7]}
18. b3 {[%clk 0:01:31.1]} 18... Qd7 {[%clk 0:00:54]} 19. h3 {[%clk 0:01:24.5]}
19... Bxe2 {[%clk 0:00:51.4]} 20. Nxe2 {[%clk 0:01:08.2]} 20... Nfd5 {[%clk
0:00:51.4]} 21. Bg3 {[%clk 0:00:54.5]} 21... Nb4 {[%clk 0:00:51.4]} 22. Rac1
{[%clk 0:00:39.6]} 22... N6d5 {[%clk 0:00:48.3]} 23. Nc3 {[%clk 0:00:32.9]}
23... Nxc3 {[%clk 0:00:46]} 24. Rxc3 {[%clk 0:00:33.8]} 24... h5 {[%clk
0:00:42.1]} 25. Rxc8 {[%clk 0:00:28.2]} 25... Rxc8 {[%clk 0:00:43]} 26. Qg5
{[%clk 0:00:28.5]} 26... d5 {[%clk 0:00:33.3]} 27. Be5 {[%clk 0:00:26.8]} 27...
Qd8 {[%clk 0:00:28.3]} 28. Qf4 {[%clk 0:00:22.9]} 28... Qb6 {[%clk 0:00:22.5]}
29. Bxg7 {[%clk 0:00:21.2]} 29... Kxg7 {[%clk 0:00:23.4]} 30. h4 {[%clk
0:00:18.3]} 30... Qf6 {[%clk 0:00:23]} 31. Qd2 {[%clk 0:00:13.6]} 31... Qxh4
{[%clk 0:00:22.5]} 32. g3 {[%clk 0:00:13.6]} 32... Qf6 {[%clk 0:00:22.8]} 33.
Kg2 {[%clk 0:00:13.4]} 33... Rc2 {[%clk 0:00:22.5]} 34. Qe1 {[%clk 0:00:13.9]}
34... Rb2 {[%clk 0:00:21.7]} 35. Qe3 {[%clk 0:00:13.9]} 35... h4 {[%clk
0:00:15.3]} 36. Rh1 {[%clk 0:00:11.2]} 36... g5 {[%clk 0:00:12.4]} 37. gxh4
{[%clk 0:00:10.1]} 37... gxh4 {[%clk 0:00:13.3]} 38. Kh3 {[%clk 0:00:09.6]}
38... Qe6+ {[%clk 0:00:12.1]} 39. Qxe6 {[%clk 0:00:09.3]} 39... fxe6 {[%clk
0:00:13]} 40. Kxh4 {[%clk 0:00:08.7]} 40... Rxf2 {[%clk 0:00:12.8]} 41. Rg1+
{[%clk 0:00:08.5]} 41... Kf6 {[%clk 0:00:12.7]} 42. Bg4 {[%clk 0:00:08.6]} 42...
Nc6 {[%clk 0:00:06.9]} 43. Kg3 {[%clk 0:00:08]} 43... Rd2 {[%clk 0:00:06.1]} 44.
Rh1 {[%clk 0:00:07.9]} 44... Nxd4 {[%clk 0:00:06]} 45. Rh7 {[%clk 0:00:07.9]}
45... b6 {[%clk 0:00:05.7]} 46. Bh5 {[%clk 0:00:08.1]} 46... Ke5 {[%clk
0:00:04.8]} 47. Rb7 {[%clk 0:00:07.6]} 47... Rd3+ {[%clk 0:00:05]} 48. Kg4
{[%clk 0:00:07.4]} 48... Rxb3 {[%clk 0:00:05.9]} 49. Bg6 {[%clk 0:00:07.6]}
49... Rb4 {[%clk 0:00:06.4]} 50. Kg5 {[%clk 0:00:07.1]} 50... Nf3+ {[%clk
0:00:06.4]} 51. Kh6 {[%clk 0:00:06.5]} 51... Rg4 {[%clk 0:00:06.3]} 52. Kg7
{[%clk 0:00:06.5]} 52... Nh4 {[%clk 0:00:06.2]} 0-1

[Event "*** Titled Tuesday Blitz"]
[Site "Chess.com"]
[Date "2020.05.12"]
[Round "9"]
[White "DanielDardha2005"]
[Black "sergiochess83"]
[Result "1-0"]
[WhiteElo "2669"]
[BlackElo "2811"]
[TimeControl "180+1"]
[EndTime "11:44:01 PDT"]
[Termination "DanielDardha2005 won by resignation"]

1. e4 {[%clk 0:02:52.6]} 1... c6 {[%clk 0:02:59.5]} 2. d4 {[%clk 0:02:50.2]}
2... d5 {[%clk 0:02:59.5]} 3. Nc3 {[%clk 0:02:49.9]} 3... dxe4 {[%clk
0:02:58.5]} 4. Nxe4 {[%clk 0:02:50.8]} 4... Bf5 {[%clk 0:02:59]} 5. Ng3 {[%clk
0:02:50.9]} 5... Bg6 {[%clk 0:02:59.3]} 6. Bc4 {[%clk 0:02:49.8]} 6... e6 {[%clk
0:02:58.4]} 7. Nf3 {[%clk 0:02:47.2]} 7... Nd7 {[%clk 0:02:57.7]} 8. Qe2 {[%clk
0:02:39.4]} 8... Ngf6 {[%clk 0:02:54.4]} 9. Ne5 {[%clk 0:02:25.3]} 9... Nxe5
{[%clk 0:02:36.8]} 10. dxe5 {[%clk 0:02:26.2]} 10... Nd5 {[%clk 0:02:37.4]} 11.
h4 {[%clk 0:02:06.7]} 11... Bb4+ {[%clk 0:02:24]} 12. Kf1 {[%clk 0:01:59.7]}
12... h6 {[%clk 0:02:22.7]} 13. h5 {[%clk 0:01:58.7]} 13... Bh7 {[%clk
0:02:21.2]} 14. a3 {[%clk 0:01:33.3]} 14... Be7 {[%clk 0:02:12.4]} 15. Bd3
{[%clk 0:01:13.2]} 15... Bxd3 {[%clk 0:02:05]} 16. Qxd3 {[%clk 0:01:14.1]} 16...
Qc7 {[%clk 0:02:03.7]} 17. Qe4 {[%clk 0:00:56.2]} 17... O-O-O {[%clk 0:02:01.9]}
18. c4 {[%clk 0:00:53.6]} 18... Nb6 {[%clk 0:01:57.8]} 19. Be3 {[%clk
0:00:53.5]} 19... Na4 {[%clk 0:01:44]} 20. Qc2 {[%clk 0:00:47.2]} 20... Nc5
{[%clk 0:01:38.5]} 21. f4 {[%clk 0:00:45.8]} 21... f6 {[%clk 0:01:20.1]} 22.
exf6 {[%clk 0:00:38.3]} 22... gxf6 {[%clk 0:01:20.7]} 23. Ne4 {[%clk 0:00:35.3]}
23... Nd3 {[%clk 0:01:11.1]} 24. g3 {[%clk 0:00:27.4]} 24... f5 {[%clk
0:01:11.4]} 25. Nf2 {[%clk 0:00:25.8]} 25... Nxf2 {[%clk 0:01:00.4]} 26. Kxf2
{[%clk 0:00:26.7]} 26... Bf6 {[%clk 0:01:01]} 27. Rad1 {[%clk 0:00:24.7]} 27...
a6 {[%clk 0:00:48.8]} 28. Qb3 {[%clk 0:00:20]} 28... c5 {[%clk 0:00:35.2]} 29.
Rxd8+ {[%clk 0:00:17.1]} 29... Rxd8 {[%clk 0:00:34.4]} 30. Re1 {[%clk
0:00:10.4]} 30... Qc6 {[%clk 0:00:31.2]} 31. Qc2 {[%clk 0:00:08.9]} 31... Rd6
{[%clk 0:00:16.5]} 32. b4 {[%clk 0:00:09]} 32... Bd4 {[%clk 0:00:05.5]} 33. Bxd4
{[%clk 0:00:08.1]} 33... Rxd4 {[%clk 0:00:06.4]} 34. Qe2 {[%clk 0:00:07.8]}
34... Kd7 {[%clk 0:00:05.9]} 35. bxc5 {[%clk 0:00:06.7]} 35... Re4 {[%clk
0:00:06.3]} 36. Qd3+ {[%clk 0:00:06.9]} 36... Ke7 {[%clk 0:00:05.4]} 37. Rxe4
{[%clk 0:00:07.3]} 37... fxe4 {[%clk 0:00:05.8]} 38. Qd4 {[%clk 0:00:07.5]}
38... Kf7 {[%clk 0:00:05.9]} 39. Ke3 {[%clk 0:00:07.5]} 39... Qa4 {[%clk
0:00:06.2]} 40. Kxe4 {[%clk 0:00:06.7]} 40... Qc2+ {[%clk 0:00:05.8]} 41. Qd3
{[%clk 0:00:07.1]} 41... Qg2+ {[%clk 0:00:05.9]} 42. Ke5 {[%clk 0:00:07]} 42...
Qc6 {[%clk 0:00:04.3]} 43. Qd6 {[%clk 0:00:07.1]} 43... Qc8 {[%clk 0:00:03.7]}
44. g4 {[%clk 0:00:07.5]} 44... Qh8+ {[%clk 0:00:02.6]} 45. Ke4 {[%clk
0:00:07.7]} 45... Qc8 {[%clk 0:00:03.4]} 46. f5 {[%clk 0:00:06.2]} 46... exf5+
{[%clk 0:00:03.2]} 47. gxf5 {[%clk 0:00:06.6]} 47... Qe8+ {[%clk 0:00:03.9]} 48.
Kf4 {[%clk 0:00:06.6]} 48... Qe2 {[%clk 0:00:03.5]} 49. Qg6+ {[%clk 0:00:06.1]}
49... Ke7 {[%clk 0:00:03.9]} 50. f6+ {[%clk 0:00:05.1]} 50... Ke6 {[%clk
0:00:04.4]} 51. Qe8+ {[%clk 0:00:04.7]} 1-0

[Event "*** Titled Tuesday Blitz"]
[Site "Chess.com"]
[Date "2020.05.12"]
[Round "9"]
[White "AminMolaei"]
[Black "SPEEDSKATER"]
[Result "0-1"]
[WhiteElo "2553"]
[BlackElo "2773"]
[TimeControl "180+1"]
[EndTime "11:44:01 PDT"]
[Termination "SPEEDSKATER won by resignation"]

1. d4 {[%clk 0:03:00.9]} 1... d5 {[%clk 0:02:59.5]} 2. c4 {[%clk 0:03:00.5]}
2... c6 {[%clk 0:02:59]} 3. cxd5 {[%clk 0:03:00.1]} 3... cxd5 {[%clk 0:02:59.9]}
4. Bf4 {[%clk 0:03:01]} 4... Nc6 {[%clk 0:02:56.9]} 5. e3 {[%clk 0:03:01.4]}
5... Nf6 {[%clk 0:02:55.4]} 6. Nc3 {[%clk 0:03:01.3]} 6... a6 {[%clk 0:02:53.7]}
7. Rc1 {[%clk 0:03:00.5]} 7... Bg4 {[%clk 0:02:49.8]} 8. f3 {[%clk 0:03:00.3]}
8... Bd7 {[%clk 0:02:47.6]} 9. Bd3 {[%clk 0:03:00.4]} 9... e6 {[%clk 0:02:45.3]}
10. Nge2 {[%clk 0:03:00.8]} 10... Nh5 {[%clk 0:02:44.7]} 11. Bg3 {[%clk
0:02:55.5]} 11... Be7 {[%clk 0:02:43.4]} 12. Bf2 {[%clk 0:02:53.4]} 12... Nf6
{[%clk 0:02:38.2]} 13. g4 {[%clk 0:02:52.7]} 13... O-O {[%clk 0:02:35.7]} 14. h4
{[%clk 0:02:52.4]} 14... Rc8 {[%clk 0:02:34]} 15. Bg3 {[%clk 0:02:49]} 15... Ne8
{[%clk 0:02:30.4]} 16. Kf2 {[%clk 0:02:46.5]} 16... Bd6 {[%clk 0:02:29.7]} 17.
Qg1 {[%clk 0:02:42.5]} 17... e5 {[%clk 0:02:22.2]} 18. Nxd5 {[%clk 0:02:28.8]}
18... exd4 {[%clk 0:02:15.8]} 19. exd4 {[%clk 0:02:06.2]} 19... Be6 {[%clk
0:02:13.2]} 20. Ndf4 {[%clk 0:01:56.6]} 20... Nxd4 {[%clk 0:02:08.9]} 21. Nxd4
{[%clk 0:01:30.7]} 21... Bxf4 {[%clk 0:01:54.6]} 22. Nxe6 {[%clk 0:01:29.6]}
22... Qb6+ {[%clk 0:01:20.2]} 23. Kg2 {[%clk 0:01:26.3]} 23... Qxb2+ {[%clk
0:01:18.8]} 24. Qf2 {[%clk 0:00:31.5]} 24... Qxf2+ {[%clk 0:01:17]} 25. Bxf2
{[%clk 0:00:30.7]} 25... Rxc1 {[%clk 0:01:14.9]} 26. Rxc1 {[%clk 0:00:29.4]}
26... Bxc1 {[%clk 0:01:15.8]} 27. Nxf8 {[%clk 0:00:29.4]} 27... Kxf8 {[%clk
0:01:04.3]} 28. Bxh7 {[%clk 0:00:18.5]} 28... g6 {[%clk 0:01:01.2]} 29. Bd4
{[%clk 0:00:18.8]} 29... b5 {[%clk 0:00:26]} 30. h5 {[%clk 0:00:17.5]} 30...
gxh5 {[%clk 0:00:26.4]} 31. gxh5 {[%clk 0:00:18.1]} 31... Bh6 {[%clk 0:00:25.7]}
32. Kh3 {[%clk 0:00:15.5]} 32... Ke7 {[%clk 0:00:24.1]} 33. Kg4 {[%clk
0:00:15.1]} 33... Nd6 {[%clk 0:00:20.9]} 34. Bc5 {[%clk 0:00:13.1]} 34... Ke6
{[%clk 0:00:21.3]} 35. Bxd6 {[%clk 0:00:10]} 35... Kxd6 {[%clk 0:00:22.2]} 36.
Bc2 {[%clk 0:00:09.8]} 36... Ke5 {[%clk 0:00:22.4]} 37. Bb3 {[%clk 0:00:09.5]}
37... f6 {[%clk 0:00:22.2]} 38. Bc2 {[%clk 0:00:09]} 38... a5 {[%clk 0:00:22.1]}
39. Bd3 {[%clk 0:00:08.5]} 39... b4 {[%clk 0:00:22.3]} 40. Bc2 {[%clk 0:00:09]}
40... Bc1 {[%clk 0:00:21.9]} 41. Bb3 {[%clk 0:00:09.1]} 41... Bg5 {[%clk
0:00:21.6]} 42. Ba4 {[%clk 0:00:09.2]} 42... Bh6 {[%clk 0:00:21.5]} 43. Bb3
{[%clk 0:00:09.6]} 43... f5+ {[%clk 0:00:21.6]} 44. Kg3 {[%clk 0:00:10.1]} 44...
Kd4 {[%clk 0:00:20.3]} 45. Ba4 {[%clk 0:00:09]} 45... Kc3 {[%clk 0:00:20.3]} 46.
Bb3 {[%clk 0:00:09.4]} 46... Kb2 {[%clk 0:00:20.1]} 47. Be6 {[%clk 0:00:09.2]}
47... Ka3 {[%clk 0:00:20.2]} 48. Bd5 {[%clk 0:00:04.4]} 48... a4 {[%clk
0:00:20.3]} 49. Be6 {[%clk 0:00:04.4]} 49... Kb2 {[%clk 0:00:20.6]} 50. Bd5
{[%clk 0:00:02.5]} 50... Ka3 {[%clk 0:00:20]} 51. Be6 {[%clk 0:00:02.2]} 51...
b3 {[%clk 0:00:20.6]} 52. axb3 {[%clk 0:00:02.9]} 52... axb3 {[%clk 0:00:21.5]}
53. Bxb3 {[%clk 0:00:03.2]} 53... Kxb3 {[%clk 0:00:22.4]} 54. f4 {[%clk
0:00:03.7]} 54... Kc4 {[%clk 0:00:22.6]} 55. Kf3 {[%clk 0:00:04.6]} 55... Kd4
{[%clk 0:00:22.8]} 56. Kg3 {[%clk 0:00:04.6]} 56... Ke4 {[%clk 0:00:23.3]} 57.
Kh4 {[%clk 0:00:05]} 57... Kxf4 {[%clk 0:00:23.6]} 58. Kh3 {[%clk 0:00:05.9]}
58... Kg5 {[%clk 0:00:24.5]} 59. Kg3 {[%clk 0:00:06.8]} 59... Kxh5 {[%clk
0:00:25.4]} 60. Kh3 {[%clk 0:00:07.5]} 60... Kg6 {[%clk 0:00:26.3]} 0-1

[Event "*** Titled Tuesday Blitz"]
[Site "Chess.com"]
[Date "2020.05.12"]
[Round "9"]
[White "OK97"]
[Black "Azatic"]
[Result "1-0"]
[WhiteElo "2757"]
[BlackElo "2581"]
[TimeControl "180+1"]
[EndTime "11:44:07 PDT"]
[Termination "OK97 won by resignation"]

1. e4 {[%clk 0:03:00.9]} 1... c5 {[%clk 0:02:59.9]} 2. Nf3 {[%clk 0:03:00.6]}
2... e6 {[%clk 0:02:59.7]} 3. g3 {[%clk 0:02:56]} 3... Nc6 {[%clk 0:02:59.4]} 4.
Bg2 {[%clk 0:02:56.1]} 4... d6 {[%clk 0:02:59.7]} 5. O-O {[%clk 0:02:55.7]} 5...
Nf6 {[%clk 0:02:59.3]} 6. Nc3 {[%clk 0:02:55.9]} 6... Be7 {[%clk 0:02:59.1]} 7.
d4 {[%clk 0:02:55.1]} 7... cxd4 {[%clk 0:03:00]} 8. Nxd4 {[%clk 0:02:55.9]} 8...
Bd7 {[%clk 0:02:55.9]} 9. Be3 {[%clk 0:02:52]} 9... a6 {[%clk 0:02:55.4]} 10. a4
{[%clk 0:02:37.6]} 10... Rc8 {[%clk 0:02:52.4]} 11. Nxc6 {[%clk 0:02:34.2]}
11... Bxc6 {[%clk 0:02:51.5]} 12. a5 {[%clk 0:02:28.2]} 12... h5 {[%clk
0:02:48.1]} 13. Bb6 {[%clk 0:02:25.7]} 13... Qd7 {[%clk 0:02:47.5]} 14. Re1
{[%clk 0:02:22.7]} 14... e5 {[%clk 0:02:40.9]} 15. Nd5 {[%clk 0:02:07.4]} 15...
h4 {[%clk 0:02:30.7]} 16. Ra3 {[%clk 0:01:45.3]} 16... hxg3 {[%clk 0:02:20.6]}
17. Rxg3 {[%clk 0:01:40.9]} 17... Bxd5 {[%clk 0:02:15.1]} 18. exd5 {[%clk
0:01:40.8]} 18... g6 {[%clk 0:01:50.2]} 19. Ree3 {[%clk 0:01:38.5]} 19... Rc4
{[%clk 0:01:30.7]} 20. Rc3 {[%clk 0:01:17.4]} 20... Rxc3 {[%clk 0:01:19.7]} 21.
Rxc3 {[%clk 0:01:15.3]} 21... Kf8 {[%clk 0:00:55.1]} 22. Qd3 {[%clk 0:01:03.7]}
22... Qg4 {[%clk 0:00:34]} 23. h3 {[%clk 0:01:02.9]} 23... Qh4 {[%clk
0:00:13.8]} 24. Rc4 {[%clk 0:00:53.2]} 24... e4 {[%clk 0:00:12.4]} 25. Qc3
{[%clk 0:00:37.1]} 25... Rh5 {[%clk 0:00:11.1]} 26. Bd4 {[%clk 0:00:31.5]} 26...
Rg5 {[%clk 0:00:09.2]} 27. Kf1 {[%clk 0:00:26.3]} 27... Rf5 {[%clk 0:00:07.2]}
28. Rc8+ {[%clk 0:00:23.6]} 28... Kg7 {[%clk 0:00:07.1]} 29. Rc7 {[%clk
0:00:24.1]} 29... Qh5 {[%clk 0:00:06.7]} 30. Ke1 {[%clk 0:00:19.3]} 30... Bd8
{[%clk 0:00:06.8]} 31. Rc8 {[%clk 0:00:18.8]} 31... Qg5 {[%clk 0:00:06.3]} 32.
Bxe4 {[%clk 0:00:08.6]} 32... Qg1+ {[%clk 0:00:03.9]} 33. Ke2 {[%clk 0:00:08.2]}
33... Rf4 {[%clk 0:00:04.4]} 34. f3 {[%clk 0:00:06.7]} 34... Qg2+ {[%clk
0:00:04.1]} 35. Ke3 {[%clk 0:00:07.2]} 35... Qg5 {[%clk 0:00:04.2]} 36. Ke2
{[%clk 0:00:05.9]} 36... Qg2+ {[%clk 0:00:03.7]} 37. Ke3 {[%clk 0:00:06.4]}
37... Qg5 {[%clk 0:00:03.6]} 38. Kd3 {[%clk 0:00:06.9]} 38... Rxe4 {[%clk
0:00:03]} 39. fxe4 {[%clk 0:00:05.9]} 39... Be7 {[%clk 0:00:03.8]} 40. Kc4
{[%clk 0:00:05.8]} 40... Qg2 {[%clk 0:00:02.9]} 41. Kb3 {[%clk 0:00:06.2]} 41...
Qxe4 {[%clk 0:00:03.1]} 42. Qc4 {[%clk 0:00:06.7]} 42... Qf3+ {[%clk 0:00:03.1]}
43. c3 {[%clk 0:00:06.6]} 43... Qxh3 {[%clk 0:00:03.2]} 44. Rc7 {[%clk
0:00:06.9]} 44... Bd8 {[%clk 0:00:02.7]} 45. Rxb7 {[%clk 0:00:07.5]} 45... Qf5
{[%clk 0:00:01.9]} 46. Qc6 {[%clk 0:00:07]} 46... Qf3 {[%clk 0:00:02.8]} 47.
Qxd6 {[%clk 0:00:06.6]} 47... Qd1+ {[%clk 0:00:03.7]} 48. Ka3 {[%clk 0:00:06.9]}
48... Bxa5 {[%clk 0:00:04.4]} 49. Qxf6+ {[%clk 0:00:06.9]} 49... Kh6 {[%clk
0:00:05.3]} 50. Qh4+ {[%clk 0:00:06.9]} 50... Qh5 {[%clk 0:00:03.9]} 51. Qxh5+
{[%clk 0:00:07.4]} 51... Kxh5 {[%clk 0:00:04.8]} 52. Rxf7 {[%clk 0:00:08.1]} 1-0

[Event "*** Titled Tuesday Blitz"]
[Site "Chess.com"]
[Date "2020.05.12"]
[Round "9"]
[White "stanyga"]
[Black "Natalya_Buksa"]
[Result "0-1"]
[WhiteElo "2630"]
[BlackElo "2537"]
[TimeControl "180+1"]
[EndTime "11:44:10 PDT"]
[Termination "Natalya_Buksa won on time"]

1. e4 {[%clk 0:03:00.9]} 1... c5 {[%clk 0:02:58]} 2. Nf3 {[%clk 0:03:00.3]} 2...
Nc6 {[%clk 0:02:56.3]} 3. Bb5 {[%clk 0:02:59.2]} 3... g6 {[%clk 0:02:55.3]} 4.
Bxc6 {[%clk 0:02:59.1]} 4... dxc6 {[%clk 0:02:55.3]} 5. d3 {[%clk 0:02:59.1]}
5... Bg7 {[%clk 0:02:56.2]} 6. h3 {[%clk 0:02:59.3]} 6... Nf6 {[%clk 0:02:56.7]}
7. a4 {[%clk 0:02:58.1]} 7... Nd7 {[%clk 0:02:56.7]} 8. a5 {[%clk 0:02:56.2]}
8... e5 {[%clk 0:02:56.6]} 9. Nbd2 {[%clk 0:02:55.8]} 9... Nf8 {[%clk
0:02:47.3]} 10. Nc4 {[%clk 0:02:55.2]} 10... Qc7 {[%clk 0:02:47.6]} 11. Be3
{[%clk 0:02:42.8]} 11... Ne6 {[%clk 0:02:47.7]} 12. Qd2 {[%clk 0:02:41.9]} 12...
O-O {[%clk 0:02:28.8]} 13. Bh6 {[%clk 0:02:30.7]} 13... f6 {[%clk 0:02:27.2]}
14. Bxg7 {[%clk 0:02:30.5]} 14... Kxg7 {[%clk 0:02:25.8]} 15. O-O {[%clk
0:02:30.3]} 15... Nf4 {[%clk 0:02:22]} 16. Qe3 {[%clk 0:02:28.5]} 16... Qe7
{[%clk 0:02:14.3]} 17. Nfd2 {[%clk 0:02:24]} 17... Rb8 {[%clk 0:02:11.6]} 18.
Kh2 {[%clk 0:01:53.6]} 18... b6 {[%clk 0:02:08.1]} 19. axb6 {[%clk 0:01:53.2]}
19... axb6 {[%clk 0:02:09]} 20. Ra2 {[%clk 0:01:40.7]} 20... Be6 {[%clk
0:01:50]} 21. Rfa1 {[%clk 0:01:38.6]} 21... Rb7 {[%clk 0:01:48.5]} 22. Ra6
{[%clk 0:01:37.4]} 22... Rfb8 {[%clk 0:01:44.6]} 23. b4 {[%clk 0:01:24.2]} 23...
Bxc4 {[%clk 0:01:21]} 24. Nxc4 {[%clk 0:01:22.4]} 24... Ne6 {[%clk 0:01:21.5]}
25. bxc5 {[%clk 0:01:12.9]} 25... Nxc5 {[%clk 0:01:19.5]} 26. Ra8 {[%clk
0:01:13]} 26... b5 {[%clk 0:01:07]} 27. Rxb8 {[%clk 0:00:57.7]} 27... Rxb8
{[%clk 0:01:06.7]} 28. Nd2 {[%clk 0:00:48]} 28... Rb7 {[%clk 0:00:49]} 29. Ra8
{[%clk 0:00:45.7]} 29... Ne6 {[%clk 0:00:48.8]} 30. Nb3 {[%clk 0:00:43.6]} 30...
c5 {[%clk 0:00:48.6]} 31. Na5 {[%clk 0:00:41.9]} 31... Rc7 {[%clk 0:00:44]} 32.
Ra6 {[%clk 0:00:38.8]} 32... Nd4 {[%clk 0:00:41.5]} 33. c3 {[%clk 0:00:38.5]}
33... Ne6 {[%clk 0:00:39.9]} 34. Qd2 {[%clk 0:00:31.1]} 34... Qd7 {[%clk
0:00:39.1]} 35. Ra8 {[%clk 0:00:24.2]} 35... Nf4 {[%clk 0:00:38.2]} 36. Qa2
{[%clk 0:00:22.8]} 36... Qf7 {[%clk 0:00:32.2]} 37. Qb1 {[%clk 0:00:17.6]} 37...
Qd7 {[%clk 0:00:24.6]} 38. Qb3 {[%clk 0:00:13.1]} 38... Nxd3 {[%clk 0:00:17.8]}
39. Qg8+ {[%clk 0:00:12.1]} 39... Kh6 {[%clk 0:00:18.3]} 40. Qf8+ {[%clk
0:00:06.7]} 40... Qg7 {[%clk 0:00:18.6]} 41. Qe8 {[%clk 0:00:06.6]} 41... Nxf2
{[%clk 0:00:08.1]} 42. Qxb5 {[%clk 0:00:05.4]} 42... Nxe4 {[%clk 0:00:08.3]} 43.
Qe2 {[%clk 0:00:03.3]} 43... f5 {[%clk 0:00:08.5]} 44. Qe3+ {[%clk 0:00:03]}
44... g5 {[%clk 0:00:09]} 45. Nc4 {[%clk 0:00:02.7]} 45... Rc6 {[%clk
0:00:08.1]} 46. Qd3 {[%clk 0:00:02.7]} 46... Rg6 {[%clk 0:00:07.8]} 47. Qd5
{[%clk 0:00:02.7]} 47... g4 {[%clk 0:00:07.2]} 48. Nxe5 {[%clk 0:00:02.8]} 48...
g3+ {[%clk 0:00:07]} 49. Kg1 {[%clk 0:00:01.9]} 49... Rb6 {[%clk 0:00:06.6]} 50.
Nf7+ {[%clk 0:00:01.9]} 50... Qxf7 {[%clk 0:00:05.9]} 0-1